[Event "December 19 Late 2023"]
[Site "https://www.chess.com"]
[Date "2023.12.19"]
[Round "8"]
[White "Postny, Evgeny"]
[Black "Antunez Soler, Luis"]
[Result "1-0"]
[Board "36"]
[TimeControl "180+1"]
[WhiteFideId "2804344"]
[BlackFideId "3513335"]
[WhiteElo "2505"]
[BlackElo "2154"]
[WhiteTeam "ISR"]
[BlackTeam "CUB"]
[WhiteClock "0:00:07"]
[BlackClock "0:00:06"]

1. e4 {[%clk 0:02:57]}  e6 {[%clk 0:03:00]} 2. d4 {[%clk 0:02:56]}  d5 {[%clk 0:03:01]} 3. Nd2 {[%clk 0:02:56]}  Be7 {[%clk 0:03:01]} 4. Bd3 {[%clk 0:02:55]}  c5 {[%clk 0:03:00]} 5. dxc5 {[%clk 0:02:55]}  Nf6 {[%clk 0:03:00]} 6. Qe2 {[%clk 0:02:55]}  Nc6 {[%clk 0:03:00]} 7. Ngf3 {[%clk 0:02:55]}  Nb4 {[%clk 0:03:00]} 8. O-O {[%clk 0:02:54]}  Nxd3 {[%clk 0:02:58]} 9. cxd3 {[%clk 0:02:54]}  Bxc5 {[%clk 0:02:58]} 10. Nb3 {[%clk 0:02:45]}  Be7 {[%clk 0:02:57]} 11. Bf4 {[%clk 0:02:44]}  O-O {[%clk 0:02:51]} 12. Rac1 {[%clk 0:02:43]}  Qb6 {[%clk 0:02:52]} 13. Bg5 {[%clk 0:02:32]}  dxe4 {[%clk 0:02:25]} 14. dxe4 {[%clk 0:02:31]}  Bd7 {[%clk 0:02:25]} 15. e5 {[%clk 0:02:25]}  Bb5 {[%clk 0:02:24]} 16. Qc2 {[%clk 0:02:17]}  Nd5 {[%clk 0:02:15]} 17. Bxe7 {[%clk 0:02:16]}  Nxe7 {[%clk 0:02:16]} 18. Rfd1 {[%clk 0:02:13]}  Rad8 {[%clk 0:02:04]} 19. Qc5 {[%clk 0:02:07]}  Qxc5 {[%clk 0:01:44]} 20. Nxc5 {[%clk 0:02:08]}  b6 {[%clk 0:01:41]} 21. Nb7 {[%clk 0:01:47]}  Rxd1+ {[%clk 0:01:38]} 22. Rxd1 {[%clk 0:01:48]}  Be2 {[%clk 0:01:38]} 23. Rd7 {[%clk 0:01:47]}  Ng6 {[%clk 0:01:24]} 24. Nd6 {[%clk 0:01:36]}  Bxf3 {[%clk 0:00:56]} 25. gxf3 {[%clk 0:01:37]}  Nxe5 {[%clk 0:00:57]} 26. Rxa7 {[%clk 0:01:37]}  Nxf3+ {[%clk 0:00:54]} 27. Kg2 {[%clk 0:01:35]}  Ne1+ {[%clk 0:00:52]} 28. Kf1 {[%clk 0:01:31]}  Nd3 {[%clk 0:00:53]} 29. b3 {[%clk 0:01:27]}  Nf4 {[%clk 0:00:54]} 30. Rb7 {[%clk 0:01:20]}  Rd8 {[%clk 0:00:41]} 31. Rxb6 {[%clk 0:01:19]}  Kf8 {[%clk 0:00:41]} 32. Ke1 {[%clk 0:01:09]}  Ke7 {[%clk 0:00:36]} 33. Nc4 {[%clk 0:01:08]}  Nd3+ {[%clk 0:00:35]} 34. Kf1 {[%clk 0:01:05]}  Nf4 {[%clk 0:00:35]} 35. f3 {[%clk 0:00:46]}  Rd3 {[%clk 0:00:29]} 36. Kf2 {[%clk 0:00:35]}  Rc3 {[%clk 0:00:30]} 37. a4 {[%clk 0:00:31]}  Rc2+ {[%clk 0:00:27]} 38. Kf1 {[%clk 0:00:31]}  Rc1+ {[%clk 0:00:23]} 39. Kf2 {[%clk 0:00:30]}  Rc2+ {[%clk 0:00:24]} 40. Ke1 {[%clk 0:00:29]}  Ra2 {[%clk 0:00:19]} 41. a5 {[%clk 0:00:26]}  Nd3+ {[%clk 0:00:18]} 42. Kd1 {[%clk 0:00:26]}  Nf2+ {[%clk 0:00:18]} 43. Kc1 {[%clk 0:00:26]}  Nd3+ {[%clk 0:00:17]} 44. Kb1 {[%clk 0:00:26]}  Rxh2 {[%clk 0:00:17]} 45. a6 {[%clk 0:00:25]}  Rh1+ {[%clk 0:00:17]} 46. Kc2 {[%clk 0:00:24]}  Nc5 {[%clk 0:00:14]} 47. Rc6 {[%clk 0:00:19]}  Nxa6 {[%clk 0:00:12]} 48. Rxa6 {[%clk 0:00:19]}  h5 {[%clk 0:00:13]} 49. Ra8 {[%clk 0:00:11]}  Rh3 {[%clk 0:00:11]} 50. b4 {[%clk 0:00:09]}  Rxf3 {[%clk 0:00:11]} 51. b5 {[%clk 0:00:09]}  Rf5 {[%clk 0:00:10]} 52. Ra7+ {[%clk 0:00:06]}  Kf6 {[%clk 0:00:09]} 53. Nd6 {[%clk 0:00:06]}  Rc5+ {[%clk 0:00:07]} 54. Kb3 {[%clk 0:00:05]}  Ke5 {[%clk 0:00:05]} 55. Nxf7+ {[%clk 0:00:05]}  Kd4 {[%clk 0:00:04]} 56. Kb4 {[%clk 0:00:06]}  Rc4+ {[%clk 0:00:04]} 57. Ka5 {[%clk 0:00:07]}  Rc1 {[%clk 0:00:05]} 58. Rd7+ {[%clk 0:00:07]}  Ke4 {[%clk 0:00:05]} 59. b6 {[%clk 0:00:07]}  h4 {[%clk 0:00:05]} 60. b7 {[%clk 0:00:07]}  Ra1+ {[%clk 0:00:05]} 61. Kb6 {[%clk 0:00:07]}  Rb1+ {[%clk 0:00:06]} 62. Ka7 {[%clk 0:00:07]}  h3 {[%clk 0:00:06]} 63. Ng5+ {[%clk 0:00:08]}  Kf4 {[%clk 0:00:06]} 64. Nxh3+ {[%clk 0:00:09]}  Kg4 {[%clk 0:00:06]} 65. Rd3 {[%clk 0:00:08]}  e5 {[%clk 0:00:06]} 66. Nf2+ {[%clk 0:00:08]}  Kf5 {[%clk 0:00:05]} 67. b8=Q {[%clk 0:00:08]}  Rxb8 {[%clk 0:00:05]} 68. Kxb8 {[%clk 0:00:07]}  e4 {[%clk 0:00:06]} 1-0

[Event "December 19 Late 2023"]
[Site "https://www.chess.com"]
[Date "2023.12.19"]
[Round "8"]
[White "Mkrtchyan, Mikayel"]
[Black "Dyachuk, Artem"]
[Result "0-1"]
[Board "37"]
[TimeControl "180+1"]
[WhiteFideId "13305743"]
[BlackFideId "34107924"]
[WhiteElo "2033"]
[BlackElo "2244"]
[WhiteTeam "ARM"]
[BlackTeam "UKR"]
[WhiteClock "0:00:03"]
[BlackClock "0:00:52"]

1. e4 {[%clk 0:02:51]}  e5 {[%clk 0:02:58]} 2. Nf3 {[%clk 0:02:49]}  Nc6 {[%clk 0:02:58]} 3. Bc4 {[%clk 0:02:49]}  Nf6 {[%clk 0:02:57]} 4. d3 {[%clk 0:02:49]}  h6 {[%clk 0:02:56]} 5. c3 {[%clk 0:02:37]}  d6 {[%clk 0:02:56]} 6. O-O {[%clk 0:02:35]}  g6 {[%clk 0:02:56]} 7. Re1 {[%clk 0:02:35]}  Bg7 {[%clk 0:02:55]} 8. Bb3 {[%clk 0:02:26]}  O-O {[%clk 0:02:54]} 9. h3 {[%clk 0:02:25]}  Qe7 {[%clk 0:02:54]} 10. Nbd2 {[%clk 0:02:24]}  Be6 {[%clk 0:02:54]} 11. Bxe6 {[%clk 0:02:24]}  Qxe6 {[%clk 0:02:54]} 12. Qb3 {[%clk 0:02:25]}  Qc8 {[%clk 0:02:49]} 13. Nc4 {[%clk 0:02:21]}  Nd7 {[%clk 0:02:43]} 14. Ne3 {[%clk 0:02:18]}  Nc5 {[%clk 0:02:43]} 15. Qc2 {[%clk 0:02:18]}  Ne7 {[%clk 0:02:43]} 16. d4 {[%clk 0:02:06]}  Ne6 {[%clk 0:02:42]} 17. dxe5 {[%clk 0:02:05]}  dxe5 {[%clk 0:02:42]} 18. Nd5 {[%clk 0:02:05]}  Re8 {[%clk 0:02:38]} 19. Be3 {[%clk 0:01:56]}  c6 {[%clk 0:02:36]} 20. Nxe7+ {[%clk 0:01:56]}  Rxe7 {[%clk 0:02:37]} 21. Red1 {[%clk 0:01:55]}  Qe8 {[%clk 0:02:32]} 22. a4 {[%clk 0:01:32]}  Rd8 {[%clk 0:02:31]} 23. Bxa7 {[%clk 0:01:27]}  Rxd1+ {[%clk 0:02:30]} 24. Rxd1 {[%clk 0:01:28]}  c5 {[%clk 0:02:30]} 25. b4 {[%clk 0:01:24]}  cxb4 {[%clk 0:02:26]} 26. cxb4 {[%clk 0:01:25]}  b5 {[%clk 0:02:19]} 27. Bc5 {[%clk 0:01:20]}  Nxc5 {[%clk 0:02:19]} 28. Qxc5 {[%clk 0:01:15]}  bxa4 {[%clk 0:02:17]} 29. b5 {[%clk 0:00:59]}  Rb7 {[%clk 0:02:09]} 30. b6 {[%clk 0:00:51]}  Bf8 {[%clk 0:01:52]} 31. Qa5 {[%clk 0:00:49]}  a3 {[%clk 0:01:39]} 32. Nxe5 {[%clk 0:00:44]}  a2 {[%clk 0:01:31]} 33. Nc4 {[%clk 0:00:26]}  Qe6 {[%clk 0:01:13]} 34. Qxa2 {[%clk 0:00:24]}  Rxb6 {[%clk 0:01:14]} 35. Qe2 {[%clk 0:00:21]}  Rb4 {[%clk 0:01:13]} 36. Rc1 {[%clk 0:00:21]}  Bg7 {[%clk 0:01:02]} 37. Qd3 {[%clk 0:00:20]}  Kh7 {[%clk 0:00:57]} 38. Nd2 {[%clk 0:00:19]}  Rd4 {[%clk 0:00:56]} 39. Qe2 {[%clk 0:00:17]}  Qa2 {[%clk 0:00:55]} 40. Rd1 {[%clk 0:00:16]}  Qc2 {[%clk 0:00:54]} 41. Qe1 {[%clk 0:00:14]}  Rd3 {[%clk 0:00:53]} 42. Nf3 {[%clk 0:00:03]}  Rxd1 {[%clk 0:00:52]} 0-1

[Event "December 19 Late 2023"]
[Site "https://www.chess.com"]
[Date "2023.12.19"]
[Round "8"]
[White "Gubajdullin, Alexei"]
[Black "Kotlyar, Kirill"]
[Result "1-0"]
[Board "41"]
[TimeControl "180+1"]
[WhiteFideId "4141202"]
[BlackFideId "24145599"]
[WhiteElo "2274"]
[BlackElo "2397"]
[WhiteTeam "RUS"]
[BlackTeam "RUS"]
[WhiteClock "0:01:26"]
[BlackClock "0:00:12"]

1. e4 {[%clk 0:02:59]}  e5 {[%clk 0:02:56]} 2. Nf3 {[%clk 0:02:59]}  Nc6 {[%clk 0:02:54]} 3. Bc4 {[%clk 0:02:58]}  Nf6 {[%clk 0:02:54]} 4. d4 {[%clk 0:02:59]}  exd4 {[%clk 0:02:54]} 5. e5 {[%clk 0:02:59]}  d5 {[%clk 0:02:54]} 6. Bb5 {[%clk 0:02:59]}  Ne4 {[%clk 0:02:54]} 7. Nxd4 {[%clk 0:02:59]}  Bc5 {[%clk 0:02:54]} 8. O-O {[%clk 0:02:49]}  Bxd4 {[%clk 0:02:29]} 9. Qxd4 {[%clk 0:02:46]}  O-O {[%clk 0:02:30]} 10. Bxc6 {[%clk 0:02:43]}  bxc6 {[%clk 0:02:31]} 11. Nc3 {[%clk 0:02:43]}  Nxc3 {[%clk 0:02:29]} 12. Qxc3 {[%clk 0:02:42]}  Bb7 {[%clk 0:02:27]} 13. Be3 {[%clk 0:02:41]}  Re8 {[%clk 0:02:26]} 14. Rfe1 {[%clk 0:02:39]}  Qh4 {[%clk 0:02:22]} 15. b3 {[%clk 0:02:34]}  Rad8 {[%clk 0:02:21]} 16. Bd4 {[%clk 0:02:28]}  Re6 {[%clk 0:02:08]} 17. Re3 {[%clk 0:02:27]}  Rde8 {[%clk 0:02:04]} 18. Rh3 {[%clk 0:02:22]}  Qe4 {[%clk 0:02:01]} 19. Re1 {[%clk 0:02:18]}  Qf5 {[%clk 0:01:59]} 20. Rf3 {[%clk 0:02:14]}  Qh5 {[%clk 0:01:58]} 21. Rg3 {[%clk 0:02:08]}  Rh6 {[%clk 0:01:49]} 22. h3 {[%clk 0:02:07]}  Rg6 {[%clk 0:01:48]} 23. Ree3 {[%clk 0:02:05]}  Rxg3 {[%clk 0:01:40]} 24. Rxg3 {[%clk 0:02:04]}  g6 {[%clk 0:01:31]} 25. Kh2 {[%clk 0:02:02]}  Qf5 {[%clk 0:01:29]} 26. Qc5 {[%clk 0:01:56]}  h5 {[%clk 0:01:14]} 27. Qxa7 {[%clk 0:01:54]}  h4 {[%clk 0:00:49]} 28. Rf3 {[%clk 0:01:53]}  Qc8 {[%clk 0:00:50]} 29. Qa5 {[%clk 0:01:45]}  Qa8 {[%clk 0:00:37]} 30. Qxc7 {[%clk 0:01:42]}  Rf8 {[%clk 0:00:32]} 31. e6 {[%clk 0:01:40]}  Qc8 {[%clk 0:00:25]} 32. exf7+ {[%clk 0:01:30]}  Kh7 {[%clk 0:00:24]} 33. Qe5 {[%clk 0:01:29]}  Qxh3+ {[%clk 0:00:12]} 34. Rxh3 {[%clk 0:01:26]} 1-0

[Event "December 19 Late 2023"]
[Site "https://www.chess.com"]
[Date "2023.12.19"]
[Round "8"]
[White "Makaraci, Tunahan"]
[Black "Annaberdiyev, Meylis"]
[Result "1-0"]
[Board "48"]
[TimeControl "180+1"]
[WhiteFideId "6356559"]
[BlackFideId "14000563"]
[WhiteElo "2112"]
[BlackElo "2405"]
[WhiteTeam "TUR"]
[BlackTeam "TKM"]
[WhiteClock "0:00:15"]
[BlackClock "0:00:00"]

1. e4 {[%clk 0:03:00]}  c5 {[%clk 0:02:56]} 2. c3 {[%clk 0:03:00]}  Qa5 {[%clk 0:02:54]} 3. Na3 {[%clk 0:02:56]}  d6 {[%clk 0:02:52]} 4. Nc4 {[%clk 0:02:56]}  Qc7 {[%clk 0:02:52]} 5. d4 {[%clk 0:02:55]}  Nf6 {[%clk 0:02:43]} 6. e5 {[%clk 0:02:55]}  dxe5 {[%clk 0:02:38]} 7. dxe5 {[%clk 0:02:50]}  Ng4 {[%clk 0:02:38]} 8. f4 {[%clk 0:02:44]}  Nc6 {[%clk 0:02:35]} 9. Nf3 {[%clk 0:02:39]}  Nh6 {[%clk 0:02:18]} 10. Be3 {[%clk 0:02:32]}  b6 {[%clk 0:02:17]} 11. Bd3 {[%clk 0:02:27]}  g6 {[%clk 0:01:56]} 12. O-O {[%clk 0:02:25]}  Bg7 {[%clk 0:01:56]} 13. h3 {[%clk 0:02:19]}  O-O {[%clk 0:01:51]} 14. Qe2 {[%clk 0:02:19]}  Bb7 {[%clk 0:01:47]} 15. Rad1 {[%clk 0:02:13]}  Rad8 {[%clk 0:01:46]} 16. g4 {[%clk 0:02:08]}  f6 {[%clk 0:01:38]} 17. e6 {[%clk 0:01:44]}  Kh8 {[%clk 0:01:14]} 18. Be4 {[%clk 0:01:10]}  Ba6 {[%clk 0:01:09]} 19. b3 {[%clk 0:01:06]}  f5 {[%clk 0:01:09]} 20. Bxc6 {[%clk 0:01:02]}  Qxc6 {[%clk 0:01:07]} 21. Rxd8 {[%clk 0:00:49]}  Rxd8 {[%clk 0:01:07]} 22. g5 {[%clk 0:00:50]}  Bb7 {[%clk 0:00:07]} 23. gxh6 {[%clk 0:00:35]}  Bf6 {[%clk 0:00:07]} 24. Rd1 {[%clk 0:00:27]}  Rf8 {[%clk 0:00:05]} 25. Nce5 {[%clk 0:00:20]}  Bxe5 {[%clk 0:00:04]} 26. Nxe5 {[%clk 0:00:14]}  Qh1+ {[%clk 0:00:00]} 27. Kf2 {[%clk 0:00:15]} 1-0

[Event "December 19 Late 2023"]
[Site "https://www.chess.com"]
[Date "2023.12.19"]
[Round "8"]
[White "Bjelobrk, Igor"]
[Black "Osmak, Yuliia"]
[Result "1-0"]
[Board "49"]
[TimeControl "180+1"]
[WhiteFideId "4300726"]
[BlackFideId "14101602"]
[WhiteElo "2319"]
[BlackElo "2303"]
[WhiteTeam "AUS"]
[BlackTeam "UKR"]
[WhiteClock "0:01:10"]
[BlackClock "0:00:00"]

1. d4 {[%clk 0:03:00]}  f5 {[%clk 0:02:59]} 2. g3 {[%clk 0:02:51]}  Nf6 {[%clk 0:02:58]} 3. Bg2 {[%clk 0:02:50]}  g6 {[%clk 0:02:57]} 4. Nf3 {[%clk 0:02:50]}  Bg7 {[%clk 0:02:57]} 5. O-O {[%clk 0:02:50]}  O-O {[%clk 0:02:56]} 6. Nbd2 {[%clk 0:02:50]}  d6 {[%clk 0:02:53]} 7. Re1 {[%clk 0:02:49]}  Nc6 {[%clk 0:02:42]} 8. e4 {[%clk 0:02:48]}  fxe4 {[%clk 0:02:28]} 9. Nxe4 {[%clk 0:02:49]}  Nxe4 {[%clk 0:02:28]} 10. Rxe4 {[%clk 0:02:48]}  Bf5 {[%clk 0:02:24]} 11. Rh4 {[%clk 0:02:43]}  e5 {[%clk 0:02:20]} 12. c3 {[%clk 0:02:27]}  Bf6 {[%clk 0:01:56]} 13. Qb3+ {[%clk 0:02:10]}  Kh8 {[%clk 0:01:35]} 14. Qxb7 {[%clk 0:02:07]}  Na5 {[%clk 0:01:25]} 15. Qa6 {[%clk 0:02:02]}  Bxh4 {[%clk 0:01:21]} 16. Nxh4 {[%clk 0:02:02]}  c6 {[%clk 0:01:13]} 17. Bh6 {[%clk 0:01:56]}  Rf7 {[%clk 0:01:04]} 18. dxe5 {[%clk 0:01:53]}  dxe5 {[%clk 0:00:51]} 19. b4 {[%clk 0:01:48]}  Nb7 {[%clk 0:00:42]} 20. Nxf5 {[%clk 0:01:40]}  gxf5 {[%clk 0:00:37]} 21. Bxc6 {[%clk 0:01:38]}  Qb6 {[%clk 0:00:21]} 22. Qxb6 {[%clk 0:01:15]}  axb6 {[%clk 0:00:22]} 23. Be3 {[%clk 0:01:16]}  Rd8 {[%clk 0:00:09]} 24. Bxb6 {[%clk 0:01:14]}  Rd6 {[%clk 0:00:09]} 25. b5 {[%clk 0:01:14]}  Nd8 {[%clk 0:00:04]} 26. Bxd8 {[%clk 0:01:11]}  Rxd8 {[%clk 0:00:04]} 27. a4 {[%clk 0:01:12]}  f4 {[%clk 0:00:03]} 28. a5 {[%clk 0:01:11]}  fxg3 {[%clk 0:00:02]} 29. hxg3 {[%clk 0:01:11]}  Rf6 {[%clk 0:00:00]} 30. a6 {[%clk 0:01:10]} 1-0

[Event "December 19 Late 2023"]
[Site "https://www.chess.com"]
[Date "2023.12.19"]
[Round "8"]
[White "Yagupov, Igor"]
[Black "Manukyan, Sargis A."]
[Result "0-1"]
[Board "50"]
[TimeControl "180+1"]
[WhiteFideId "4113632"]
[BlackFideId "13303970"]
[WhiteElo "2179"]
[BlackElo "2186"]
[WhiteTeam "RUS"]
[BlackTeam "ARM"]
[WhiteClock "0:01:04"]
[BlackClock "0:02:07"]

1. e4 {[%clk 0:03:00]}  c5 {[%clk 0:02:59]} 2. Nf3 {[%clk 0:03:00]}  d6 {[%clk 0:02:59]} 3. d4 {[%clk 0:03:01]}  cxd4 {[%clk 0:03:00]} 4. Nxd4 {[%clk 0:03:01]}  Nf6 {[%clk 0:03:01]} 5. Nc3 {[%clk 0:03:01]}  g6 {[%clk 0:03:01]} 6. Be3 {[%clk 0:03:00]}  Bg7 {[%clk 0:03:02]} 7. f3 {[%clk 0:03:00]}  O-O {[%clk 0:03:03]} 8. Qd2 {[%clk 0:03:00]}  Nc6 {[%clk 0:03:03]} 9. O-O-O {[%clk 0:03:01]}  d5 {[%clk 0:03:04]} 10. Qe1 {[%clk 0:03:01]}  e5 {[%clk 0:03:01]} 11. Nxc6 {[%clk 0:03:01]}  bxc6 {[%clk 0:03:02]} 12. exd5 {[%clk 0:03:02]}  Nxd5 {[%clk 0:03:03]} 13. Bc4 {[%clk 0:03:01]}  Be6 {[%clk 0:03:04]} 14. Kb1 {[%clk 0:03:01]}  Rb8 {[%clk 0:03:01]} 15. Ne4 {[%clk 0:02:58]}  Qc7 {[%clk 0:02:48]} 16. Bc5 {[%clk 0:02:56]}  Rfd8 {[%clk 0:02:47]} 17. g4 {[%clk 0:02:57]}  h6 {[%clk 0:02:47]} 18. h4 {[%clk 0:02:56]}  Nf4 {[%clk 0:02:45]} 19. Bxe6 {[%clk 0:02:48]}  Nxe6 {[%clk 0:02:46]} 20. Bd6 {[%clk 0:02:48]}  Rxd6 {[%clk 0:02:39]} 21. Nxd6 {[%clk 0:02:44]}  e4 {[%clk 0:02:36]} 22. b3 {[%clk 0:02:28]}  exf3 {[%clk 0:02:36]} 23. Qe4 {[%clk 0:02:22]}  f2 {[%clk 0:02:31]} 24. Rhf1 {[%clk 0:02:18]}  Rd8 {[%clk 0:02:28]} 25. Nc4 {[%clk 0:01:28]}  Rxd1+ {[%clk 0:02:27]} 26. Rxd1 {[%clk 0:01:28]}  Qg3 {[%clk 0:02:25]} 27. h5 {[%clk 0:01:25]}  Qc3 {[%clk 0:02:21]} 28. Kc1 {[%clk 0:01:17]}  Qa1+ {[%clk 0:02:18]} 29. Kd2 {[%clk 0:01:16]}  Qxd1+ {[%clk 0:02:19]} 30. Kxd1 {[%clk 0:01:17]}  f1=Q+ {[%clk 0:02:20]} 31. Kd2 {[%clk 0:01:17]}  Qf2+ {[%clk 0:02:14]} 32. Kd1 {[%clk 0:01:16]}  gxh5 {[%clk 0:02:10]} 33. gxh5 {[%clk 0:01:15]}  Qg1+ {[%clk 0:02:07]} 34. Kd2 {[%clk 0:01:13]}  Qh2+ {[%clk 0:02:07]} 35. Kd1 {[%clk 0:01:13]}  Qxh5+ {[%clk 0:02:08]} 36. Kd2 {[%clk 0:01:04]}  Qd5+ {[%clk 0:02:07]} 0-1

[Event "December 19 Late 2023"]
[Site "https://www.chess.com"]
[Date "2023.12.19"]
[Round "8"]
[White "Zavgorodniy, Sergiy"]
[Black "Filgueira, Hernan"]
[Result "0-1"]
[Board "53"]
[TimeControl "180+1"]
[WhiteFideId "14110148"]
[BlackFideId "101770"]
[WhiteElo "2402"]
[BlackElo "2363"]
[WhiteTeam "UKR"]
[BlackTeam "ARG"]
[WhiteClock "0:00:41"]
[BlackClock "0:01:13"]

1. e4 {[%clk 0:02:53]}  e5 {[%clk 0:02:59]} 2. Nf3 {[%clk 0:02:50]}  Nc6 {[%clk 0:02:59]} 3. Bb5 {[%clk 0:02:42]}  Nge7 {[%clk 0:02:58]} 4. O-O {[%clk 0:02:39]}  d6 {[%clk 0:02:55]} 5. h3 {[%clk 0:02:37]}  Bd7 {[%clk 0:02:55]} 6. Re1 {[%clk 0:02:34]}  g6 {[%clk 0:02:54]} 7. d3 {[%clk 0:02:33]}  Bg7 {[%clk 0:02:54]} 8. Nc3 {[%clk 0:02:31]}  O-O {[%clk 0:02:52]} 9. a3 {[%clk 0:02:32]}  h6 {[%clk 0:02:49]} 10. Bc4 {[%clk 0:02:30]}  Kh7 {[%clk 0:02:45]} 11. Nh2 {[%clk 0:02:29]}  f5 {[%clk 0:02:44]} 12. f4 {[%clk 0:02:29]}  fxe4 {[%clk 0:02:39]} 13. dxe4 {[%clk 0:02:28]}  exf4 {[%clk 0:02:37]} 14. Rf1 {[%clk 0:02:11]}  Ne5 {[%clk 0:02:32]} 15. Bb3 {[%clk 0:02:09]}  g5 {[%clk 0:02:29]} 16. Kh1 {[%clk 0:02:03]}  N7g6 {[%clk 0:02:23]} 17. Bd2 {[%clk 0:02:02]}  c6 {[%clk 0:02:19]} 18. Qe2 {[%clk 0:02:02]}  Qe7 {[%clk 0:02:18]} 19. Rad1 {[%clk 0:02:01]}  Rad8 {[%clk 0:02:16]} 20. Qf2 {[%clk 0:01:58]}  a6 {[%clk 0:02:12]} 21. Bc1 {[%clk 0:01:52]}  g4 {[%clk 0:02:09]} 22. hxg4 {[%clk 0:01:45]}  Bxg4 {[%clk 0:02:06]} 23. Rde1 {[%clk 0:01:43]}  Bh5 {[%clk 0:01:51]} 24. g3 {[%clk 0:01:42]}  f3 {[%clk 0:01:39]} 25. g4 {[%clk 0:01:25]}  Nxg4 {[%clk 0:01:33]} 26. Nxg4 {[%clk 0:01:21]}  Bxg4 {[%clk 0:01:33]} 27. Qh2 {[%clk 0:01:09]}  Qh4 {[%clk 0:01:28]} 28. Be3 {[%clk 0:00:57]}  Bh3 {[%clk 0:01:18]} 29. Qf2 {[%clk 0:00:43]}  Bg2+ {[%clk 0:01:14]} 30. Kg1 {[%clk 0:00:41]}  Qh1# {[%clk 0:01:13]} 0-1

[Event "December 19 Late 2023"]
[Site "https://www.chess.com"]
[Date "2023.12.19"]
[Round "8"]
[White "Karttunen, Mika"]
[Black "Pham, Le Thao Nguyen"]
[Result "1-0"]
[Board "54"]
[TimeControl "180+1"]
[WhiteFideId "502081"]
[BlackFideId "12401226"]
[WhiteElo "2396"]
[BlackElo "2261"]
[WhiteTeam "FIN"]
[BlackTeam "VIE"]
[WhiteClock "0:00:33"]
[BlackClock "0:00:00"]

1. d4 {[%clk 0:03:00]}  Nf6 {[%clk 0:02:59]} 2. c4 {[%clk 0:03:00]}  e6 {[%clk 0:02:58]} 3. Nf3 {[%clk 0:02:57]}  Bb4+ {[%clk 0:02:59]} 4. Bd2 {[%clk 0:02:52]}  Qe7 {[%clk 0:02:58]} 5. g3 {[%clk 0:02:50]}  O-O {[%clk 0:02:55]} 6. Qc2 {[%clk 0:02:50]}  Bxd2+ {[%clk 0:02:49]} 7. Nbxd2 {[%clk 0:02:49]}  d6 {[%clk 0:02:49]} 8. Bg2 {[%clk 0:02:49]}  e5 {[%clk 0:02:49]} 9. e3 {[%clk 0:02:45]}  c6 {[%clk 0:02:05]} 10. O-O {[%clk 0:02:40]}  e4 {[%clk 0:01:57]} 11. Ng5 {[%clk 0:02:34]}  d5 {[%clk 0:01:50]} 12. Nh3 {[%clk 0:02:17]}  h6 {[%clk 0:01:19]} 13. Nf4 {[%clk 0:01:56]}  g5 {[%clk 0:01:17]} 14. Ne2 {[%clk 0:01:54]}  Be6 {[%clk 0:01:14]} 15. Nc3 {[%clk 0:01:42]}  Nbd7 {[%clk 0:01:12]} 16. cxd5 {[%clk 0:01:39]}  cxd5 {[%clk 0:01:12]} 17. f3 {[%clk 0:01:39]}  exf3 {[%clk 0:01:00]} 18. Nxf3 {[%clk 0:01:27]}  Bg4 {[%clk 0:00:59]} 19. Rae1 {[%clk 0:01:25]}  Bh5 {[%clk 0:00:57]} 20. Qb3 {[%clk 0:01:17]}  Nb6 {[%clk 0:00:40]} 21. Ne5 {[%clk 0:01:17]}  Rfd8 {[%clk 0:00:34]} 22. a4 {[%clk 0:01:10]}  Rac8 {[%clk 0:00:20]} 23. a5 {[%clk 0:01:00]}  Nc4 {[%clk 0:00:19]} 24. Nxc4 {[%clk 0:01:00]}  dxc4 {[%clk 0:00:19]} 25. Qb5 {[%clk 0:00:54]}  Bg6 {[%clk 0:00:16]} 26. Qxb7 {[%clk 0:00:50]}  Rc7 {[%clk 0:00:17]} 27. Qf3 {[%clk 0:00:46]}  Rd6 {[%clk 0:00:12]} 28. e4 {[%clk 0:00:43]}  Ra6 {[%clk 0:00:03]} 29. e5 {[%clk 0:00:42]}  Ne8 {[%clk 0:00:03]} 30. Nd5 {[%clk 0:00:41]}  Qe6 {[%clk 0:00:03]} 31. Nxc7 {[%clk 0:00:41]}  Nxc7 {[%clk 0:00:04]} 32. d5 {[%clk 0:00:40]}  Qd7 {[%clk 0:00:04]} 33. e6 {[%clk 0:00:37]}  fxe6 {[%clk 0:00:02]} 34. Qf8+ {[%clk 0:00:36]}  Kh7 {[%clk 0:00:00]} 35. Be4 {[%clk 0:00:33]} 1-0

[Event "December 19 Late 2023"]
[Site "https://www.chess.com"]
[Date "2023.12.19"]
[Round "8"]
[White "Yashmetov, Mikhail"]
[Black "Vlassov, Nikolai"]
[Result "1-0"]
[Board "55"]
[TimeControl "180+1"]
[WhiteFideId "24198900"]
[BlackFideId "4103360"]
[WhiteElo "2220"]
[BlackElo "2351"]
[WhiteTeam "RUS"]
[BlackTeam "FID"]
[WhiteClock "0:00:03"]
[BlackClock "0:00:00"]

1. d4 {[%clk 0:02:58]}  Nf6 {[%clk 0:02:58]} 2. Nc3 {[%clk 0:02:58]}  d5 {[%clk 0:02:57]} 3. Bg5 {[%clk 0:02:57]}  Nbd7 {[%clk 0:02:56]} 4. g3 {[%clk 0:02:56]}  c6 {[%clk 0:02:50]} 5. Bg2 {[%clk 0:02:56]}  Qb6 {[%clk 0:02:50]} 6. Qd3 {[%clk 0:02:44]}  Qxb2 {[%clk 0:02:48]} 7. Rb1 {[%clk 0:02:43]}  Qa3 {[%clk 0:02:48]} 8. Nh3 {[%clk 0:02:23]}  Qa5 {[%clk 0:02:26]} 9. O-O {[%clk 0:02:14]}  h6 {[%clk 0:02:21]} 10. Bd2 {[%clk 0:02:06]}  Qc7 {[%clk 0:02:16]} 11. Bf4 {[%clk 0:01:58]}  e5 {[%clk 0:02:08]} 12. dxe5 {[%clk 0:01:56]}  Nxe5 {[%clk 0:02:08]} 13. Qe3 {[%clk 0:01:31]}  Ng4 {[%clk 0:02:04]} 14. Qd4 {[%clk 0:01:27]}  Bd6 {[%clk 0:01:52]} 15. e4 {[%clk 0:01:12]}  g5 {[%clk 0:01:41]} 16. exd5 {[%clk 0:00:51]}  gxf4 {[%clk 0:01:36]} 17. dxc6 {[%clk 0:00:51]}  f3 {[%clk 0:01:32]} 18. Nb5 {[%clk 0:00:42]}  fxg2 {[%clk 0:01:31]} 19. Nxc7+ {[%clk 0:00:39]}  Bxc7 {[%clk 0:01:32]} 20. Rfe1 {[%clk 0:00:37]}  O-O {[%clk 0:01:26]} 21. Kxg2 {[%clk 0:00:26]}  Nxc6 {[%clk 0:01:14]} 22. Qd2 {[%clk 0:00:21]}  Bf5 {[%clk 0:01:09]} 23. f3 {[%clk 0:00:19]}  Rad8 {[%clk 0:01:05]} 24. Qc1 {[%clk 0:00:19]}  Nf6 {[%clk 0:00:47]} 25. Rxb7 {[%clk 0:00:18]}  Ba5 {[%clk 0:00:44]} 26. Qxh6 {[%clk 0:00:12]}  Bxe1 {[%clk 0:00:36]} 27. Qg5+ {[%clk 0:00:09]}  Bg6 {[%clk 0:00:34]} 28. Nf4 {[%clk 0:00:09]}  Nh7 {[%clk 0:00:21]} 29. Qh6 {[%clk 0:00:06]}  Ne5 {[%clk 0:00:16]} 30. Ne6 {[%clk 0:00:02]}  Rd2+ {[%clk 0:00:00]} 31. Kf1 {[%clk 0:00:03]} 1-0